[Event "Belt and Road Women 2024"]
[Site "Yuecheng Shaoxing"]
[Date "2024.07.28"]
[Round "5.3"]
[White "Pham, Le Thao Nguyen"]
[Black "Shuvalova, Polina"]
[Result "0-1"]
[ECO "E51"]
[WhiteElo "2395"]
[BlackElo "2467"]
[Annotator "TA"]
[PlyCount "50"]
[EventDate "2024.08.01"]
[EventType "swiss"]
[EventCountry "CHN"]
[SourceTitle "playchess.com"]
[Source "ChessBase"]
[SourceQuality "1"]
[TimeControl "5400+30"]

{[%evp 12,50,0,0,0,-6,6,0,16,-35,-27,-39,-35,-32,-45,-55,-41,-58,-58,-37,-47,-67,-66,-59,-5,-57,-64,-66,-43,-145,-145,-190,-186,-648,-632,-612,-601,-1631,-1597,-29997,-29998]} 1. d4 {[%emt 0:00:07]} Nf6 {[%emt 0:00:05]} 2. c4 {[%emt 0:00:19]} e6 {[%emt 0:00:05]} 3. Nc3 {[%emt 0:00:23]} Bb4 {[%emt 0:00:06]} 4. e3 {[%emt 0:01:12]} O-O {[%emt 0:00:09]} 5. Bd2 {[%emt 0:00:39]} d5 {[%emt 0:02:52]} 6. Nf3 {[%emt 0:03:49]} b6 {[%emt 0:03:48]} 7. a3 {[%emt 0:03:34]} Be7 {[%emt 0:01:26]} 8. Bd3 {[%emt 0:04:37]} Bb7 {[%emt 0:03:48]} 9. O-O {[%emt 0:00:52]} Nbd7 {[%emt 0:03:32] The position is equal.} 10. b4 {[%emt 0:05:47]} (10. cxd5 $11 exd5 11. b4) 10... dxc4 $15 {[%emt 0:03:52]} 11. Bxc4 {[%emt 0:00:41]} c5 {[%emt 0:00:13]} 12. dxc5 {[%emt 0:06:51]} bxc5 {[%emt 0:00:12]} 13. b5 {[%emt 0:02:50]} Bxf3 {[%emt 0:21:08]} 14. gxf3 {[%emt 0:00:38]} (14. Qxf3 $2 {loses.} Ne5 15. Qe2 Nxc4 $19) 14... Ne5 {[%emt 0:05:30]} 15. Be2 {[%emt 0:04:54]} c4 {[%emt 0:00:26]} 16. Qc2 {[%emt 0:07:41]} Qd7 {[%emt 0:07:22]} (16... Nd3 {feels hotter.} 17. Na2 Qd5 18. Bb4 Rae8) 17. Rfd1 {[%emt 0:07:41]} Nd3 {[%emt 0:05:59]} (17... Rac8 $15) 18. a4 {[%emt 0:06:38]} ({Better is} 18. e4 $11) 18... Rfd8 {[%emt 0:04:24]} 19. Be1 {[%emt 0:12:37]} Bb4 $36 {[%emt 0:08:28][%mdl 2048] Black has some pressure.} 20. Qb1 {[%emt 0:07:56]} ({White should play} 20. Rac1 $15) 20... Ba5 $17 {[%emt 0:00:54] Black has more active pieces.} 21. Bd2 {[%emt 0:03:44] [#]} e5 $1 {[%emt 0:05:15]} 22. Ra2 $2 {[%emt 0:08:34]} (22. Ne4 Nxe4 23. Bxa5 Nexf2 24. Rf1 Nh3+ 25. Kh1) 22... Qf5 $19 {[%emt 0:08:40]} 23. Rf1 {[%emt 0:08:54]} Rd6 {[%emt 0:01:29]} 24. Kh1 {[%emt 0:00:43]} Qh3 {[%emt 0:00:05][%cal Of6g4] ( -> ...Ng4!)} 25. Nd1 {[%emt 0:00:42] [#]} Ng4 $1 {[%emt 0:01:00][%mdl 512] Weighted Error Value: White=1.05/Black=0.06 (flawless) .  Mistake:       	White=4     	Black=1      Inaccurate:     	White=1     	---        OK:         	White=2     	Black=8      Best:        	White=1     	Black=1      Strong:       	---       	Black=1} 0-1

[Event "Belt and Road Women 2024"]
[Site "Yuecheng Shaoxing"]
[Date "2024.07.28"]
[Round "5.4"]
[White "Wagner, Dinara"]
[Black "Guo, Qi"]
[Result "1/2-1/2"]
[ECO "E04"]
[WhiteElo "2454"]
[BlackElo "2362"]
[Annotator "RC"]
[PlyCount "76"]
[EventDate "2024.08.01"]
[EventType "swiss"]
[EventCountry "CHN"]
[SourceTitle "playchess.com"]
[Source "ChessBase"]
[SourceQuality "1"]
[TimeControl "5400+30"]

1. d4 {[%emt 0:00:01]} Nf6 {[%emt 0:00:17]} 2. c4 {[%emt 0:00:04]} e6 {[%emt 0:00:04]} 3. Nf3 {[%emt 0:00:04]} d5 {[%emt 0:00:04]} 4. g3 {[%emt 0:00:16]} dxc4 {[%emt 0:00:27]} 5. Bg2 {[%emt 0:00:05]} Bd7 {[%emt 0:00:10]} 6. Qc2 {[%emt 0:10:23]} c5 {[%emt 0:07:03]} 7. Qxc4 {[%emt 0:09:26]} Bc6 {[%emt 0:04:19]} 8. dxc5 {[%emt 0:11:44]} Nbd7 {[%emt 0:00:11]} 9. Nc3 {[%emt 0:02:49]} Bxc5 {[%emt 0:01:19]} 10. b4 {[%emt 0:07:00]} Be7 {[%emt 0:04:11]} 11. O-O {[%emt 0:00:32]} Rc8 {[%emt 0:04:52]} 12. Qb3 {[%emt 0:01:22]} O-O {[%emt 0:11:03]} 13. Bb2 {[%emt 0:10:37]} Qb6 {[%emt 0:05:41]} 14. a3 {[%emt 0:08:23]} Nc5 {[%emt 0:02:16]} 15. Qa2 {[%emt 0:02:52]} Nce4 {[%emt 0:00:07]} 16. Nxe4 {[%emt 0:05:23]} Bxe4 {[%emt 0:00:10]} 17. Rac1 {[%emt 0:02:24]} a5 {[%emt 0:01:00]} 18. bxa5 {[%emt 0:04:49]} Qxa5 {[%emt 0:00:21]} 19. Nd4 {[%emt 0:01:55]} Bxg2 {[%emt 0:07:16]} 20. Kxg2 {[%emt 0:00:12]} Qd5+ {[%emt 0:00:06]} 21. Qxd5 {[%emt 0:00:04]} Nxd5 {[%emt 0:00:04]} 22. Nb5 {[%emt 0:02:05]} Rc5 {[%emt 0:01:58]} 23. Rxc5 {[%emt 0:01:42]} Bxc5 {[%emt 0:00:02]} 24. Rc1 {[%emt 0:02:12]} b6 {[%emt 0:00:13]} 25. Bd4 {[%emt 0:06:09]} Bxd4 {[%emt 0:00:08]} 26. Nxd4 {[%emt 0:00:03]} Ra8 {[%emt 0:00:05]} 27. a4 {[%emt 0:01:19]} g5 {[%emt 0:00:13]} 28. Rc4 {[%emt 0:00:12]} Kg7 {[%emt 0:01:13]} 29. Kf3 {[%emt 0:02:05]} Kg6 {[%emt 0:00:37]} 30. Nc6 {[%emt 0:00:54]} Kg7 {[%emt 0:02:31]} 31. e4 {[%emt 0:00:30]} Nf6 {[%emt 0:00:01]} 32. Ne5 {[%emt 0:00:33]} Ra5 {[%emt 0:01:03]} 33. Nc6 {[%emt 0:01:52]} Ra8 {[%emt 0:00:01]} 34. Ne5 {[%emt 0:04:36]} Ra5 {[%emt 0:00:04]} 35. Nd3 {[%emt 0:00:30]} Nd7 {[%emt 0:00:11]} 36. Rb4 {[%emt 0:00:17]} Nc5 {[%emt 0:02:25]} 37. Nxc5 {[%emt 0:00:03]} bxc5 {[%emt 0:00:03]} 38. Rb5 {[%emt 0:01:03]} Rxa4 {[%emt 0:00:06]} 1/2-1/2

[Event "Belt and Road Women 2024"]
[Site "Yuecheng Shaoxing"]
[Date "2024.07.28"]
[Round "5.5"]
[White "Zhai, Mo"]
[Black "Mammadzada, Gunay"]
[Result "1/2-1/2"]
[ECO "D14"]
[WhiteElo "2348"]
[BlackElo "2444"]
[Annotator "RC"]
[PlyCount "80"]
[EventDate "2024.08.01"]
[EventType "swiss"]
[EventCountry "CHN"]
[SourceTitle "playchess.com"]
[Source "ChessBase"]
[SourceQuality "1"]
[TimeControl "5400+30"]

1. d4 {[%emt 0:00:07]} d5 {[%emt 0:00:12]} 2. c4 {[%emt 0:00:32]} c6 {[%emt 0:00:04]} 3. Nc3 {[%emt 0:02:09]} Nf6 {[%emt 0:00:52]} 4. cxd5 {[%emt 0:01:07]} cxd5 {[%emt 0:00:04]} 5. Bf4 {[%emt 0:00:20]} Nc6 {[%emt 0:00:05]} 6. e3 {[%emt 0:00:50]} Bf5 {[%emt 0:00:09]} 7. Nf3 {[%emt 0:02:50]} e6 {[%emt 0:00:05]} 8. Qb3 {[%emt 0:00:58]} Bb4 {[%emt 0:00:13]} 9. Bb5 {[%emt 0:00:25]} O-O {[%emt 0:00:28]} 10. Bxc6 {[%emt 0:01:05]} Bxc3+ {[%emt 0:00:07]} 11. Qxc3 {[%emt 0:00:10]} Ne4 {[%emt 0:00:05]} 12. Qa3 {[%emt 0:04:08]} bxc6 {[%emt 0:00:06]} 13. O-O {[%emt 0:02:37]} g5 {[%emt 0:09:36]} 14. Bg3 {[%emt 0:00:27]} f6 {[%emt 0:00:04]} 15. Rfc1 {[%emt 0:12:19]} Qd7 {[%emt 0:24:29]} 16. Qa5 {[%emt 0:15:22]} Rac8 {[%emt 0:09:26]} 17. Nd2 {[%emt 0:06:07]} Nxd2 {[%emt 0:08:11]} 18. Qxd2 {[%emt 0:00:09]} h5 {[%emt 0:00:09]} 19. h3 {[%emt 0:08:35]} Qg7 {[%emt 0:02:58]} 20. Qe2 {[%emt 0:03:37]} h4 {[%emt 0:02:49]} 21. Bh2 {[%emt 0:01:18]} e5 {[%emt 0:01:25]} 22. dxe5 {[%emt 0:06:44]} fxe5 {[%emt 0:00:05]} 23. e4 {[%emt 0:00:09]} dxe4 {[%emt 0:05:20]} 24. Rc3 {[%emt 0:07:51]} Qg6 {[%emt 0:04:15]} 25. Re1 {[%emt 0:02:56]} Kh7 {[%emt 0:09:58]} 26. Rc5 {[%emt 0:03:37]} Rce8 {[%emt 0:03:15]} 27. Qe3 {[%emt 0:02:28]} Rf7 {[%emt 0:00:45]} 28. Rxe5 {[%emt 0:03:21]} Rg8 {[%emt 0:03:43]} 29. f3 {[%emt 0:03:17]} exf3 {[%emt 0:00:27]} 30. Qxf3 {[%emt 0:00:20]} g4 {[%emt 0:01:57]} 31. hxg4 {[%emt 0:00:10]} Qxg4 {[%emt 0:05:32]} 32. Qxg4 {[%emt 0:02:27]} Rxg4 {[%emt 0:03:25]} 33. R1e3 {[%emt 0:04:22]} Kg6 {[%emt 0:01:15]} 34. Re8 {[%emt 0:00:27]} Rd7 {[%emt 0:00:51]} 35. Rg8+ {[%emt 0:01:02]} Kf7 {[%emt 0:02:21]} 36. Rxg4 {[%emt 0:00:09]} Bxg4 {[%emt 0:00:30]} 37. Re4 {[%emt 0:00:22]} Rd1+ {[%emt 0:00:21]} 38. Kf2 {[%emt 0:00:01]} Rd2+ {[%emt 0:00:10]} 39. Kg1 {[%emt 0:00:43]} Rd1+ {[%emt 0:02:03]} 40. Kf2 {[%emt 0:00:02]} Rd2+ {[%emt 0:00:05]} 1/2-1/2

[Event "Belt and Road Women 2024"]
[Site "Yuecheng Shaoxing"]
[Date "2024.07.28"]
[Round "5.6"]
[White "Stefanova, Antoaneta"]
[Black "Kurmangaliyeva, Liya"]
[Result "1-0"]
[ECO "A07"]
[WhiteElo "2417"]
[BlackElo "2282"]
[Annotator "RC"]
[PlyCount "115"]
[EventDate "2024.08.01"]
[EventType "swiss"]
[EventCountry "CHN"]
[SourceTitle "playchess.com"]
[Source "ChessBase"]
[SourceQuality "1"]
[TimeControl "5400+30"]

1. Nf3 {[%emt 0:01:05]} d5 {[%emt 0:00:16]} 2. g3 {[%emt 0:00:06]} Bg4 {[%emt 0:00:31]} 3. Bg2 {[%emt 0:00:47]} c6 {[%emt 0:00:18]} 4. O-O {[%emt 0:04:55]} Nd7 {[%emt 0:00:11]} 5. d4 {[%emt 0:01:47]} e6 {[%emt 0:04:25]} 6. c4 {[%emt 0:02:21]} Ngf6 {[%emt 0:03:19]} 7. cxd5 {[%emt 0:01:45]} exd5 {[%emt 0:06:02]} 8. Nc3 {[%emt 0:02:55]} Bd6 {[%emt 0:03:03]} 9. Nh4 {[%emt 0:02:41]} Nf8 {[%emt 0:17:04]} 10. f3 {[%emt 0:04:39]} Bd7 {[%emt 0:09:04]} 11. e4 {[%emt 0:02:56]} Be7 {[%emt 0:01:07]} 12. exd5 {[%emt 0:26:08]} Nxd5 {[%emt 0:05:18]} 13. Nxd5 {[%emt 0:01:03]} cxd5 {[%emt 0:00:07]} 14. f4 {[%emt 0:02:13]} Ng6 {[%emt 0:08:09]} 15. Nf3 {[%emt 0:07:29]} O-O {[%emt 0:01:32]} 16. Qb3 {[%emt 0:02:13]} Qb6 {[%emt 0:10:14]} 17. Qxd5 {[%emt 0:05:13]} Rfd8 {[%emt 0:06:27]} 18. Qb3 {[%emt 0:03:28]} Be6 {[%emt 0:06:38]} 19. Qxb6 {[%emt 0:02:07]} axb6 {[%emt 0:00:04]} 20. a3 {[%emt 0:00:08]} Bc4 {[%emt 0:02:43]} 21. Rd1 {[%emt 0:02:48]} Be2 {[%emt 0:05:00]} 22. Re1 {[%emt 0:00:26]} Bxf3 {[%emt 0:02:06]} 23. Bxf3 {[%emt 0:00:01]} Bf6 {[%emt 0:00:38]} 24. Be3 {[%emt 0:04:31]} Bxd4 {[%emt 0:00:35]} 25. Bxd4 {[%emt 0:01:37]} Rxd4 {[%emt 0:00:04]} 26. Bxb7 {[%emt 0:00:09]} Rad8 {[%emt 0:03:33]} 27. Bf3 {[%emt 0:00:13]} Nf8 {[%emt 0:00:13]} 28. Rac1 {[%emt 0:02:53]} Rd3 {[%emt 0:01:46]} 29. Red1 {[%emt 0:02:38]} Ne6 {[%emt 0:01:49]} 30. Rxd3 {[%emt 0:00:50]} Rxd3 {[%emt 0:00:01]} 31. Be4 {[%emt 0:02:14]} Rd8 {[%emt 0:01:48]} 32. b4 {[%emt 0:00:59]} g6 {[%emt 0:01:12]} 33. Rc6 {[%emt 0:01:06]} Rd4 {[%emt 0:00:07]} 34. Bg2 {[%emt 0:03:24]} b5 {[%emt 0:01:29]} 35. Bf1 {[%emt 0:03:02]} Rd1 {[%emt 0:00:33]} 36. Rc3 {[%emt 0:00:34]} Kg7 {[%emt 0:00:32]} 37. Rd3 {[%emt 0:01:18]} Ra1 {[%emt 0:00:11]} 38. Kf2 {[%emt 0:00:07]} Kf6 {[%emt 0:00:27]} 39. h4 {[%emt 0:00:53]} h6 {[%emt 0:00:40]} 40. Be2 {[%emt 0:00:45]} g5 {[%emt 0:00:21]} 41. fxg5+ {[%emt 0:00:20]} hxg5 {[%emt 0:00:02]} 42. Rf3+ {[%emt 0:01:26]} Kg7 {[%emt 0:00:25]} 43. hxg5 {[%emt 0:00:18]} Nxg5 {[%emt 0:01:07]} 44. Re3 {[%emt 0:00:25]} Ra2 {[%emt 0:00:31]} 45. Ke1 {[%emt 0:00:15]} Ra1+ {[%emt 0:00:41]} 46. Kd2 {[%emt 0:00:10]} Ra2+ {[%emt 0:00:13]} 47. Kc1 {[%emt 0:02:09]} Ra1+ {[%emt 0:00:02]} 48. Kc2 {[%emt 0:01:08]} Ne6 {[%emt 0:01:13]} 49. Bxb5 {[%emt 0:00:14]} Nd4+ {[%emt 0:00:24]} 50. Kb2 {[%emt 0:00:06]} Rg1 {[%emt 0:00:11]} 51. Bd3 {[%emt 0:00:49]} Kf6 {[%emt 0:00:53]} 52. b5 {[%emt 0:00:29]} Ne6 {[%emt 0:00:16]} 53. a4 {[%emt 0:00:56]} Rg2+ {[%emt 0:00:25]} 54. Ka3 {[%emt 0:00:31]} Ke7 {[%emt 0:00:21]} 55. Bc4 {[%emt 0:00:58]} Kd6 {[%emt 0:00:21]} 56. Bxe6 {[%emt 0:00:23]} fxe6 {[%emt 0:00:02]} 57. Rc3 {[%emt 0:00:10]} Rg1 {[%emt 0:00:31]} 58. b6 {[%emt 0:00:36]} 1-0

[Event "Belt and Road Women 2024"]
[Site "Yuecheng Shaoxing"]
[Date "2024.07.28"]
[Round "5.7"]
[White "Xiao, Yiyi"]
[Black "Beydullayeva, Govhar"]
[Result "1-0"]
[ECO "C48"]
[WhiteElo "2338"]
[BlackElo "2417"]
[Annotator "RC"]
[PlyCount "223"]
[EventDate "2024.08.01"]
[EventType "swiss"]
[EventCountry "CHN"]
[SourceTitle "playchess.com"]
[Source "ChessBase"]
[SourceQuality "1"]
[TimeControl "5400+30"]

1. e4 {[%emt 0:01:14]} e5 {[%emt 0:00:03]} 2. Nf3 {[%emt 0:00:16]} Nc6 {[%emt 0:00:05]} 3. Nc3 {[%emt 0:02:32]} Nf6 {[%emt 0:01:11]} 4. Bb5 {[%emt 0:00:21]} Nd4 {[%emt 0:03:01]} 5. O-O {[%emt 0:01:14]} c6 {[%emt 0:05:22]} 6. Bd3 {[%emt 0:01:32]} Nxf3+ {[%emt 0:01:11]} 7. Qxf3 {[%emt 0:00:07]} d6 {[%emt 0:03:11]} 8. Be2 {[%emt 0:02:58]} g6 {[%emt 0:00:58]} 9. d3 {[%emt 0:04:06]} Bg4 {[%emt 0:17:23]} 10. Qe3 {[%emt 0:03:43]} Bxe2 {[%emt 0:00:51]} 11. Qxe2 {[%emt 0:01:31]} Bg7 {[%emt 0:02:42]} 12. f4 {[%emt 0:10:34]} Qb6+ {[%emt 0:13:43]} 13. Kh1 {[%emt 0:01:35]} Nd7 {[%emt 0:05:32]} 14. f5 {[%emt 0:00:32]} O-O-O {[%emt 0:01:17]} 15. a4 {[%emt 0:03:06]} a5 {[%emt 0:02:27]} 16. Be3 {[%emt 0:03:22]} Nc5 {[%emt 0:02:21]} 17. Rab1 {[%emt 0:12:54]} h5 {[%emt 0:05:01]} 18. b4 {[%emt 0:03:08]} axb4 {[%emt 0:00:09]} 19. Na2 {[%emt 0:04:28]} Bh6 {[%emt 0:04:37]} 20. Bg1 {[%emt 0:08:15]} Qa5 {[%emt 0:01:02]} 21. Rxb4 {[%emt 0:02:00]} Rd7 {[%emt 0:00:33]} 22. Rc4 {[%emt 0:02:48]} Bg5 {[%emt 0:06:57]} 23. Rb1 {[%emt 0:11:04]} Re8 {[%emt 0:02:12]} 24. Bf2 {[%emt 0:00:46]} Bd8 {[%emt 0:02:42]} 25. Nc1 {[%emt 0:01:43]} b6 {[%emt 0:04:14]} 26. Nb3 {[%emt 0:03:54]} Qa8 {[%emt 0:01:54]} 27. a5 {[%emt 0:02:07]} Nxb3 {[%emt 0:00:16]} 28. cxb3 {[%emt 0:01:12]} bxa5 {[%emt 0:02:28]} 29. Qa2 {[%emt 0:05:00]} Ree7 {[%emt 0:06:21]} 30. b4 {[%emt 0:01:03]} Kb8 {[%emt 0:02:10]} 31. Bh4 {[%emt 0:01:15]} Re8 {[%emt 0:00:23]} 32. bxa5+ {[%emt 0:00:17]} Kc8 {[%emt 0:00:46]} 33. Bxd8 {[%emt 0:01:45]} Kxd8 {[%emt 0:00:03]} 34. f6 {[%emt 0:00:30]} c5 {[%emt 0:01:13]} 35. Rc2 {[%emt 0:00:37]} Kc8 {[%emt 0:01:19]} 36. Rcb2 {[%emt 0:00:30]} Re6 {[%emt 0:00:35]} 37. Qd5 {[%emt 0:00:21]} Qa7 {[%emt 0:00:43]} 38. a6 {[%emt 0:01:49]} Rc7 {[%emt 0:00:28]} 39. Rb7 {[%emt 0:02:29]} Qxa6 {[%emt 0:00:10]} 40. Qxe6+ {[%emt 0:00:13]} fxe6 {[%emt 0:00:07]} 41. f7 {[%emt 0:01:32]} Rxf7 {[%emt 0:01:46]} 42. Rxf7 {[%emt 0:00:05]} Qxd3 {[%emt 0:00:18]} 43. Ra1 {[%emt 0:00:12]} Kb8 {[%emt 0:00:24]} 44. h3 {[%emt 0:00:36]} Qxe4 {[%emt 0:01:45]} 45. Raa7 {[%emt 0:00:04]} Qc6 {[%emt 0:00:17]} 46. Rad7 {[%emt 0:00:22]} Qc8 {[%emt 0:00:45]} 47. Rxd6 {[%emt 0:00:05]} c4 {[%emt 0:00:28]} 48. Rb6+ {[%emt 0:01:26]} Ka8 {[%emt 0:00:01]} 49. Rf1 {[%emt 0:00:11]} Ka7 {[%emt 0:00:05]} 50. Rb4 {[%emt 0:00:04]} Qa6 {[%emt 0:00:32]} 51. Rc1 {[%emt 0:00:26]} c3 {[%emt 0:01:11]} 52. Rb3 {[%emt 0:00:04]} c2 {[%emt 0:00:43]} 53. Rb2 {[%emt 0:00:33]} h4 {[%emt 0:00:23]} 54. Rbxc2 {[%emt 0:00:08]} Qb6 {[%emt 0:00:32]} 55. Ra2+ {[%emt 0:01:40]} Kb7 {[%emt 0:00:18]} 56. Rcc2 {[%emt 0:00:05]} Qb1+ {[%emt 0:00:36]} 57. Kh2 {[%emt 0:00:01]} Qe1 {[%emt 0:00:39]} 58. Rab2+ {[%emt 0:00:07]} Ka6 {[%emt 0:00:25]} 59. Rb3 {[%emt 0:00:22]} Qa5 {[%emt 0:00:11]} 60. Rc6+ {[%emt 0:00:39]} Ka7 {[%emt 0:00:11]} 61. Rcc3 {[%emt 0:01:46]} Qd5 {[%emt 0:00:06]} 62. Rb4 {[%emt 0:00:07]} Qa5 {[%emt 0:00:42]} 63. Rcc4 {[%emt 0:00:04]} Qd5 {[%emt 0:00:15]} 64. Rxh4 {[%emt 0:00:10]} e4 {[%emt 0:01:28]} 65. Rbxe4 {[%emt 0:02:01]} Qd6+ {[%emt 0:00:30]} 66. Kg1 {[%emt 0:00:28]} Qc5+ {[%emt 0:00:28]} 67. Kf1 {[%emt 0:00:04]} Qc1+ {[%emt 0:00:19]} 68. Kf2 {[%emt 0:00:04]} Qc5+ {[%emt 0:00:24]} 69. Re3 {[%emt 0:00:30]} Qc2+ {[%emt 0:00:59]} 70. Kf3 {[%emt 0:00:34]} Qd1+ {[%emt 0:00:17]} 71. Kf2 {[%emt 0:00:07]} Qc2+ {[%emt 0:00:09]} 72. Kg3 {[%emt 0:00:13]} Qc7+ {[%emt 0:00:04]} 73. Kf3 {[%emt 0:00:05]} Qf7+ {[%emt 0:01:34]} 74. Rf4 {[%emt 0:00:07]} Qb7+ {[%emt 0:00:10]} 75. Kg3 {[%emt 0:00:46]} Qd5 {[%emt 0:00:42]} 76. Rfe4 {[%emt 0:00:22]} Qd6+ {[%emt 0:00:13]} 77. Kf2 {[%emt 0:00:29]} Qd2+ {[%emt 0:00:38]} 78. Re2 {[%emt 0:00:06]} Qc1 {[%emt 0:00:32]} 79. Rxe6 {[%emt 0:00:29]} Qf4+ {[%emt 0:00:13]} 80. Kg1 {[%emt 0:00:05]} g5 {[%emt 0:00:16]} 81. R6e4 {[%emt 0:00:22]} Qc1+ {[%emt 0:00:04]} 82. Kh2 {[%emt 0:00:25]} Kb6 {[%emt 0:00:08]} 83. Rg4 {[%emt 0:01:33]} Qc7+ {[%emt 0:00:20]} 84. Rg3 {[%emt 0:00:19]} g4 {[%emt 0:01:28]} 85. Rb2+ {[%emt 0:00:24]} Ka6 {[%emt 0:00:16]} 86. hxg4 {[%emt 0:00:58]} Qf4 {[%emt 0:00:36]} 87. Rb1 {[%emt 0:01:09]} Ka5 {[%emt 0:00:31]} 88. g5 {[%emt 0:01:21]} Ka4 {[%emt 0:00:28]} 89. Kh3 {[%emt 0:01:15]} Qf5+ {[%emt 0:00:21]} 90. Rg4+ {[%emt 0:00:01]} Ka3 {[%emt 0:00:04]} 91. Rb7 {[%emt 0:00:13]} Qg6 {[%emt 0:00:44]} 92. Rbb4 {[%emt 0:00:27]} Qh7+ {[%emt 0:00:53]} 93. Rh4 {[%emt 0:00:18]} Qd3+ {[%emt 0:00:31]} 94. Kh2 {[%emt 0:00:05]} Qd6+ {[%emt 0:00:06]} 95. Rbf4 {[%emt 0:00:27]} Kb3 {[%emt 0:00:29]} 96. Rhg4 {[%emt 0:00:23]} Qg6 {[%emt 0:00:09]} 97. Rg3+ {[%emt 0:00:34]} Kc2 {[%emt 0:00:10]} 98. Rh4 {[%emt 0:00:10]} Kd2 {[%emt 0:00:31]} 99. Rh6 {[%emt 0:00:06]} Qg7 {[%emt 0:00:05]} 100. Rd6+ {[%emt 0:00:58]} Ke2 {[%emt 0:00:03]} 101. Re6+ {[%emt 0:00:05]} Kd2 {[%emt 0:00:03]} 102. g6 {[%emt 0:01:32]} Qh8+ {[%emt 0:00:26]} 103. Kg1 {[%emt 0:00:06]} Qa1+ {[%emt 0:02:19]} 104. Kf2 {[%emt 0:00:07]} Qd4+ {[%emt 0:00:03]} 105. Ree3 {[%emt 0:00:10]} Qf6+ {[%emt 0:00:52]} 106. Kg1 {[%emt 0:00:08]} Qg7 {[%emt 0:00:23]} 107. Rd3+ {[%emt 0:00:34]} Kc2 {[%emt 0:00:02]} 108. Rdf3 {[%emt 0:00:17]} Kd2 {[%emt 0:01:23]} 109. Rf2+ {[%emt 0:00:55]} Ke1 {[%emt 0:00:47]} 110. Re3+ {[%emt 0:00:36]} Kd1 {[%emt 0:00:02]} 111. Kf1 {[%emt 0:01:33]} Qc3 {[%emt 0:00:31]} 112. Ree2 {[%emt 0:00:53]} 1-0

[Event "Belt and Road Women 2024"]
[Site "Yuecheng Shaoxing"]
[Date "2024.07.28"]
[Round "5.8"]
[White "Yan, Tianqi"]
[Black "Garifullina, Leya"]
[Result "1-0"]
[ECO "B94"]
[WhiteElo "2306"]
[BlackElo "2458"]
[Annotator "RC"]
[PlyCount "173"]
[EventDate "2024.08.01"]
[EventType "swiss"]
[EventCountry "CHN"]
[SourceTitle "playchess.com"]
[Source "ChessBase"]
[SourceQuality "1"]
[TimeControl "5400+30"]

1. e4 {[%emt 0:00:03]} c5 {[%emt 0:00:21]} 2. Nf3 {[%emt 0:00:10]} d6 {[%emt 0:00:05]} 3. d4 {[%emt 0:00:08]} cxd4 {[%emt 0:00:06]} 4. Nxd4 {[%emt 0:00:05]} Nf6 {[%emt 0:00:05]} 5. Nc3 {[%emt 0:00:09]} a6 {[%emt 0:00:05]} 6. Bg5 {[%emt 0:00:38]} Nbd7 {[%emt 0:02:47]} 7. Qe2 {[%emt 0:00:19]} e6 {[%emt 0:04:11]} 8. f4 {[%emt 0:00:28]} Qa5 {[%emt 0:07:56]} 9. O-O-O {[%emt 0:05:41]} Be7 {[%emt 0:00:12]} 10. Kb1 {[%emt 0:07:59]} h6 {[%emt 0:07:12]} 11. Bh4 {[%emt 0:01:22]} g5 {[%emt 0:03:49]} 12. fxg5 {[%emt 0:02:49]} hxg5 {[%emt 0:06:44]} 13. Nb3 {[%emt 0:01:46]} Qc7 {[%emt 0:09:06]} 14. Bxg5 {[%emt 0:00:25]} b5 {[%emt 0:00:06]} 15. a3 {[%emt 0:03:11]} Rb8 {[%emt 0:01:03]} 16. Qe1 {[%emt 0:03:56]} Ne5 {[%emt 0:02:54]} 17. Bd3 {[%emt 0:04:20]} Bd7 {[%emt 0:02:33]} 18. Rf1 {[%emt 0:03:16]} Ng8 {[%emt 0:02:04]} 19. Qg3 {[%emt 0:12:50]} Bxg5 {[%emt 0:05:10]} 20. Qxg5 {[%emt 0:00:09]} Ne7 {[%emt 0:00:03]} 21. Be2 {[%emt 0:04:32]} b4 {[%emt 0:06:18]} 22. axb4 {[%emt 0:01:01]} Rxb4 {[%emt 0:00:06]} 23. Bxa6 {[%emt 0:14:04]} Qb6 {[%emt 0:03:23]} 24. Be2 {[%emt 0:01:15]} Rg8 {[%emt 0:01:58]} 25. Qf6 {[%emt 0:07:56]} Rxg2 {[%emt 0:02:17]} 26. Bh5 {[%emt 0:00:49]} N7g6 {[%emt 0:02:11]} 27. Bxg6 {[%emt 0:02:37]} Rxg6 {[%emt 0:00:06]} 28. Qh8+ {[%emt 0:00:56]} Ke7 {[%emt 0:00:05]} 29. Qh4+ {[%emt 0:01:30]} Kf8 {[%emt 0:01:20]} 30. Rd2 {[%emt 0:01:25]} Be8 {[%emt 0:01:24]} 31. Rdf2 {[%emt 0:02:30]} Qe3 {[%emt 0:03:18]} 32. Qd8 {[%emt 0:01:47]} Qb6 {[%emt 0:00:20]} 33. Qh4 {[%emt 0:02:24]} Qe3 {[%emt 0:00:39]} 34. Re2 {[%emt 0:02:00]} Qb6 {[%emt 0:02:05]} 35. Qh8+ {[%emt 0:00:12]} Ke7 {[%emt 0:00:06]} 36. h4 {[%emt 0:00:40]} Rg3 {[%emt 0:01:57]} 37. Qf6+ {[%emt 0:01:05]} Kd7 {[%emt 0:00:37]} 38. h5 {[%emt 0:03:02]} Rh3 {[%emt 0:02:49]} 39. h6 {[%emt 0:01:42]} Qd8 {[%emt 0:00:55]} 40. Qg7 {[%emt 0:02:37]} Kc7 {[%emt 0:01:19]} 41. h7 {[%emt 0:03:16]} Qh4 {[%emt 0:00:11]} 42. Qf8 {[%emt 0:01:32]} Rb8 {[%emt 0:00:25]} 43. Rd1 {[%emt 0:00:05]} Rd8 {[%emt 0:00:44]} 44. Nd4 {[%emt 0:01:03]} Kb8 {[%emt 0:06:35]} 45. h8=Q {[%emt 0:01:40]} Qxh8 {[%emt 0:00:05]} 46. Qe7 {[%emt 0:00:02]} Qh4 {[%emt 0:00:18]} 47. Qxh4 {[%emt 0:00:26]} Rxh4 {[%emt 0:00:04]} 48. Ndb5 {[%emt 0:00:16]} Bxb5 {[%emt 0:05:45]} 49. Nxb5 {[%emt 0:00:02]} Kb7 {[%emt 0:01:36]} 50. Nxd6+ {[%emt 0:01:44]} Kc6 {[%emt 0:00:04]} 51. Red2 {[%emt 0:00:03]} Rdh8 {[%emt 0:01:13]} 52. b3 {[%emt 0:01:15]} Rh1 {[%emt 0:00:41]} 53. Rxh1 {[%emt 0:01:15]} Rxh1+ {[%emt 0:00:04]} 54. Kb2 {[%emt 0:00:02]} Rf1 {[%emt 0:02:30]} 55. Ne8 {[%emt 0:00:51]} Rf4 {[%emt 0:00:38]} 56. Rd4 {[%emt 0:00:37]} Nf3 {[%emt 0:00:33]} 57. Rd3 {[%emt 0:00:16]} Ng5 {[%emt 0:00:54]} 58. e5 {[%emt 0:00:10]} Re4 {[%emt 0:00:27]} 59. Rc3+ {[%emt 0:00:23]} Kb6 {[%emt 0:00:31]} 60. Nd6 {[%emt 0:00:04]} Rf4 {[%emt 0:00:21]} 61. Rc8 {[%emt 0:00:39]} Nf3 {[%emt 0:00:30]} 62. c4 {[%emt 0:00:22]} Nxe5 {[%emt 0:00:12]} 63. c5+ {[%emt 0:00:03]} Ka7 {[%emt 0:00:43]} 64. Ka3 {[%emt 0:00:56]} Nd3 {[%emt 0:02:11]} 65. Rc7+ {[%emt 0:01:18]} Ka6 {[%emt 0:00:37]} 66. Rc6+ {[%emt 0:00:19]} Ka7 {[%emt 0:00:02]} 67. Rc7+ {[%emt 0:00:13]} Ka6 {[%emt 0:00:06]} 68. Rc8 {[%emt 0:00:05]} Ka7 {[%emt 0:00:06]} 69. c6 {[%emt 0:01:00]} Kb6 {[%emt 0:01:54]} 70. c7 {[%emt 0:00:23]} Rf1 {[%emt 0:00:08]} 71. b4 {[%emt 0:00:11]} Rc1 {[%emt 0:01:33]} 72. Ne8 {[%emt 0:01:30]} Rc3+ {[%emt 0:01:42]} 73. Ka2 {[%emt 0:00:02]} Nxb4+ {[%emt 0:02:15]} 74. Kb2 {[%emt 0:00:09]} Rxc7 {[%emt 0:00:57]} 75. Rxc7 {[%emt 0:00:26]} f5 {[%emt 0:00:15]} 76. Re7 {[%emt 0:00:30]} Kc5 {[%emt 0:00:11]} 77. Rxe6 {[%emt 0:00:24]} Kd5 {[%emt 0:00:02]} 78. Nc7+ {[%emt 0:00:20]} Kd4 {[%emt 0:00:03]} 79. Kc1 {[%emt 0:00:43]} Nd3+ {[%emt 0:00:37]} 80. Kd2 {[%emt 0:00:29]} Ne5 {[%emt 0:00:07]} 81. Re8 {[%emt 0:01:26]} f4 {[%emt 0:00:17]} 82. Ke2 {[%emt 0:00:08]} Ke4 {[%emt 0:00:03]} 83. Kf2 {[%emt 0:00:32]} Kf5 {[%emt 0:00:03]} 84. Nb5 {[%emt 0:00:33]} Nd3+ {[%emt 0:00:09]} 85. Ke2 {[%emt 0:00:18]} Ne5 {[%emt 0:00:27]} 86. Nd4+ {[%emt 0:00:08]} Kf6 {[%emt 0:00:08]} 87. Re6+ {[%emt 0:00:08]} 1-0